fUSD/lending_fUSD_20250812
["ID","MTS","AMOUNT","RATE_DAILY","PERIOD"]
[378819652,1755035471665,-2000.0,0.0004965,48]
[378819653,1755035471674,-174.58,0.000497,50]
[378819654,1755035471683,-284.818948,0.00049742,120]
[378819655,1755035471693,-151.0,0.00049742,120]
[378819656,1755035471703,-151.0,0.00049742,120]
[378819657,1755035471712,-151.0,0.00049742,120]
[378819658,1755035471721,-500.0,0.00049753,120]
[378819659,1755035471731,-150.0,0.00049776,120]
[378819660,1755035471740,-150.0,0.00049797,120]
[378819661,1755035471749,-1000.0,0.000498,120]
[378819662,1755035471758,-1888.0,0.00049813,120]
[378819663,1755035471767,-1888.0,0.00049814,120]
[378819664,1755035471776,-1888.0,0.00049815,120]
[378819665,1755035471786,-240.9123107,0.00049829,2]
[378819666,1755035471795,-500.0,0.00049861,120]
[378819667,1755035471805,-500.0,0.00049862,120]
[378819668,1755035471815,-500.0,0.00049862,120]
[378819669,1755035471824,-1000.0,0.00049862,120]
[378819670,1755035471833,-500.0,0.00049862,120]
[378819671,1755035471842,-500.0,0.00049862,120]
[378819672,1755035471851,-400.0,0.00049863,120]
[378819673,1755035471861,-400.0,0.00049863,120]
[378819674,1755035471870,-400.0,0.00049863,120]
[378819675,1755035471879,-1647.01,0.00049863,120]
[378819676,1755035471889,-400.0,0.00049863,120]
[378819677,1755035471898,-400.0,0.00049863,120]
[378819678,1755035471910,-454.13,0.00049863,120]
[378819679,1755035471919,-400.0,0.00049863,120]
[378819680,1755035471929,-400.0,0.00049863,120]
[378819681,1755035471938,-400.0,0.00049863,120]
[378819682,1755035471948,-400.0,0.00049863,120]
[378819683,1755035471957,-400.0,0.00049863,120]
[378819684,1755035471966,-400.0,0.00049863,120]
[378819685,1755035471976,-400.0,0.00049863,120]
[378819686,1755035471985,-400.0,0.00049863,120]
[378819687,1755035471994,-180.0,0.00049863,120]
[378819688,1755035472007,-400.0,0.00049863,120]
[378819689,1755035472016,-462.90338244,0.00049863,120]
[378819690,1755035472026,-400.0,0.00049863,120]
[378819691,1755035472035,-520.0,0.00049863,120]
[378819692,1755035472046,-400.0,0.00049863,120]
[378819693,1755035472055,-400.0,0.00049863,120]
[378819694,1755035472065,-400.0,0.00049863,120]
[378819695,1755035472076,-460.0,0.00049863,120]
[378819696,1755035472085,-400.0,0.00049863,120]
[378819697,1755035472095,-400.0,0.00049863,120]
[378819698,1755035472104,-400.0,0.00049863,120]
[378819699,1755035472114,-400.0,0.00049863,120]
[378819700,1755035472123,-400.0,0.00049863,120]
[378819701,1755035472132,-400.0,0.00049863,120]
[378819702,1755035472142,-400.0,0.00049863,120]
[378819703,1755035472151,-400.0,0.00049863,120]
[378819704,1755035472161,-400.0,0.00049863,120]
[378819705,1755035472170,-555.61,0.00049863,120]
[378819706,1755035472180,-400.0,0.00049863,120]
[378819707,1755035472190,-400.0,0.00049863,120]
[378819708,1755035472199,-400.0,0.00049863,120]
[378819709,1755035472208,-400.0,0.00049863,120]
[378819710,1755035472218,-400.0,0.00049863,120]
[378819711,1755035472227,-400.0,0.00049863,120]
[378819712,1755035472236,-400.0,0.00049863,120]
[378819713,1755035472246,-400.0,0.00049863,120]
[378819714,1755035472255,-400.0,0.00049863,120]
[378819715,1755035472264,-400.0,0.00049863,120]
[378819716,1755035472275,-609.57,0.00049863,120]
[378819717,1755035472284,-400.0,0.00049863,120]
[378819718,1755035472293,-529.2779882,0.00049863,120]
[378819719,1755035472303,-400.0,0.00049863,120]
[378819720,1755035472313,-400.0,0.00049863,120]
[378819721,1755035472322,-400.0,0.00049863,120]
[378819722,1755035472331,-400.0,0.00049863,120]
[378819723,1755035472341,-400.0,0.00049863,120]
[378819724,1755035472350,-180.35043014,0.00049863,120]
[378819725,1755035472360,-400.0,0.00049863,120]
[378819726,1755035472369,-400.0,0.00049863,120]
[378819727,1755035472379,-400.0,0.00049863,120]
[378819728,1755035472388,-400.0,0.00049863,120]
[378819729,1755035472397,-400.0,0.00049863,120]
[378819730,1755035472407,-460.0,0.00049863,120]
[378819731,1755035472416,-400.0,0.00049863,120]
[378819732,1755035472426,-400.0,0.00049863,120]
[378819733,1755035472436,-400.0,0.00049863,120]
[378819734,1755035472445,-400.0,0.00049863,120]
[378819735,1755035472455,-400.0,0.00049863,120]
[378819736,1755035472464,-400.0,0.00049863,120]
[378819737,1755035472474,-400.0,0.00049863,120]
[378819738,1755035472483,-400.0,0.00049863,120]
[378819739,1755035472492,-400.0,0.00049863,120]
[378819740,1755035472502,-151.0,0.00049863,120]
[378819741,1755035472518,-400.0,0.00049863,120]
[378819742,1755035472537,-1085.68,0.00049863,120]
[378819743,1755035472547,-400.0,0.00049863,120]
[378819744,1755035472556,-400.0,0.00049863,120]
[378819745,1755035472566,-400.0,0.00049863,120]
[378819746,1755035472575,-400.0,0.00049863,120]
[378819747,1755035472585,-400.0,0.00049863,120]
[378819748,1755035472595,-400.0,0.00049863,120]
[378819749,1755035472604,-221.53503785,0.00049863,120]
[378819750,1755035472614,-400.0,0.00049863,120]
[378819751,1755035472623,-400.0,0.00049863,120]
[378819752,1755035472632,-400.0,0.00049863,120]
[378819753,1755035472642,-400.0,0.00049863,120]
[378819754,1755035472651,-400.0,0.00049863,120]
[378819755,1755035472661,-520.0,0.00049863,120]
[378819756,1755035472670,-593.36,0.00049863,120]
[378819757,1755035472680,-400.0,0.00049863,120]
[378819758,1755035472690,-400.0,0.00049863,120]
[378819759,1755035472699,-400.0,0.00049863,120]
[378819760,1755035472709,-400.0,0.00049863,120]
[378819761,1755035472719,-400.0,0.00049863,120]
[378819762,1755035472728,-749.02,0.00049863,120]
[378819763,1755035472737,-400.0,0.00049863,120]
[378819764,1755035472747,-400.0,0.00049863,120]
[378819765,1755035472756,-400.0,0.00049863,120]
[378819766,1755035472766,-151.96483,0.00049863,120]
[378819767,1755035472776,-151.0,0.00049863,120]
[378819768,1755035472786,-400.0,0.00049863,120]
[378819769,1755035472795,-400.0,0.00049863,120]
[378819770,1755035472805,-151.0,0.00049863,120]
[378819771,1755035472815,-241.98286789,0.00049863,120]
[378819772,1755035472824,-400.0,0.00049863,120]
[378819773,1755035472834,-400.0,0.00049863,120]
[378819774,1755035472844,-529.71,0.00049863,120]
[378819775,1755035472854,-400.0,0.00049863,120]
[378819776,1755035472863,-400.0,0.00049863,120]
[378819777,1755035472874,-489.51,0.00049863,120]
[378819778,1755035472883,-400.0,0.00049863,120]
[378819779,1755035472893,-400.0,0.00049863,120]
[378819780,1755035472902,-400.0,0.00049863,120]
[378819781,1755035472912,-400.0,0.00049863,120]
[378819782,1755035472921,-400.0,0.00049863,120]
[378819783,1755035472931,-400.0,0.00049863,120]
[378819784,1755035472941,-400.0,0.00049863,120]
[378819785,1755035472951,-151.0,0.00049863,120]
[378819786,1755035472961,-400.0,0.00049863,60]
[378819787,1755035472970,-400.0,0.00049863,120]
[378819788,1755035472980,-400.0,0.00049863,120]
[378819789,1755035472990,-400.0,0.00049863,120]
[378819790,1755035473003,-400.0,0.00049863,120]
[378819791,1755035473016,-400.0,0.00049863,120]
[378819792,1755035473026,-400.0,0.00049863,120]
[378819793,1755035473036,-400.0,0.00049863,120]
[378819794,1755035473046,-400.0,0.00049863,120]
[378819795,1755035473057,-400.0,0.00049863,120]
[378819796,1755035473067,-400.0,0.00049863,120]
[378819797,1755035473078,-400.0,0.00049863,120]
[378819798,1755035473088,-427.62,0.00049863,120]
[378819799,1755035473098,-1495.21,0.00049863,120]
[378819800,1755035473108,-400.0,0.00049863,120]
[378819801,1755035473119,-400.0,0.00049863,120]
[378819802,1755035473134,-400.0,0.00049863,120]
[378819803,1755035473154,-400.0,0.00049863,120]
[378819804,1755035473167,-400.0,0.00049863,120]
[378819805,1755035473178,-549.10398158,0.00049863,120]
[378819806,1755035473188,-400.0,0.00049863,120]
[378819807,1755035473198,-400.0,0.00049863,120]
[378819808,1755035473208,-400.0,0.00049863,120]
[378819809,1755035473218,-151.0,0.00049863,120]
[378819810,1755035473228,-869.5,0.00049863,120]
[378819811,1755035473238,-400.0,0.00049863,120]
[378819812,1755035473247,-869.0,0.00049863,120]
[378819813,1755035473257,-1042.68,0.00049863,120]
[378819814,1755035473267,-690.71,0.00049863,120]
[378819815,1755035473278,-424.17,0.00049863,120]
[378819816,1755035473288,-635.01,0.00049863,120]
[378819817,1755035473297,-515.13,0.00049863,120]
[378819818,1755035473306,-400.0,0.00049863,120]
[378819819,1755035473316,-400.0,0.00049863,120]
[378819820,1755035473325,-242.497276,0.00049863,120]
[378819821,1755035473335,-400.0,0.00049863,120]
[378819822,1755035473344,-1030.69,0.00049863,120]
[378819823,1755035473353,-400.0,0.00049863,120]
[378819824,1755035473362,-460.0,0.00049863,120]
[378819825,1755035473372,-400.0,0.00049863,120]
[378819826,1755035473381,-676.85,0.00049863,120]
[378819827,1755035473390,-400.0,0.00049863,120]
[378819828,1755035473399,-400.0,0.00049863,120]
[378819829,1755035473409,-400.0,0.00049863,120]
[378819830,1755035473418,-595.39,0.00049863,120]
[378819831,1755035473428,-400.0,0.00049863,120]
[378819832,1755035473437,-400.0,0.00049863,120]
[378819833,1755035473446,-400.0,0.00049863,120]
[378819834,1755035473455,-400.0,0.00049863,120]
[378819835,1755035473464,-400.0,0.00049863,120]
[378819836,1755035473474,-570.3,0.00049863,120]
[378819837,1755035473483,-474.84,0.00049863,120]
[378819838,1755035473492,-400.0,0.00049863,120]
[378819839,1755035473502,-437.77,0.00049863,120]
[378819840,1755035473511,-457.43,0.00049863,120]
[378819841,1755035473520,-400.0,0.00049863,120]
[378819842,1755035473530,-671.71,0.00049863,120]
[378819843,1755035473540,-486.37,0.00049863,120]
[378819844,1755035473549,-400.0,0.00049863,120]
[378819845,1755035473558,-400.0,0.00049863,120]
[378819846,1755035473568,-687.14,0.00049863,120]
[378819847,1755035473578,-664.08,0.00049863,120]
[378819848,1755035473588,-400.0,0.00049863,120]
[378819849,1755035473598,-400.0,0.00049863,120]
[378819850,1755035473608,-400.0,0.00049863,120]
[378819851,1755035473618,-520.0,0.00049863,120]
[378819852,1755035473627,-620.72,0.00049863,120]
[378819853,1755035473636,-400.0,0.00049863,120]
[378819854,1755035473646,-400.0,0.00049863,120]
[378819855,1755035473655,-430.29,0.00049863,120]
[378819856,1755035473665,-400.0,0.00049863,120]
[378819857,1755035473674,-400.0,0.00049863,120]
[378819858,1755035473683,-400.0,0.00049863,120]
[378819859,1755035473693,-400.0,0.00049863,120]
[378819860,1755035473702,-654.49,0.00049863,120]
[378819861,1755035473711,-1311.07,0.00049863,120]
[378819862,1755035473721,-525.12,0.00049863,120]
[378819863,1755035473731,-400.0,0.00049863,120]
[378819864,1755035473740,-400.0,0.00049863,120]
[378819865,1755035473749,-400.0,0.00049863,120]
[378819866,1755035473759,-400.0,0.00049863,120]
[378819867,1755035473768,-400.0,0.00049863,120]
[378819868,1755035473777,-400.0,0.00049863,120]
[378819869,1755035473787,-616.48,0.00049863,120]
[378819870,1755035473797,-400.0,0.00049863,120]
[378819871,1755035473806,-151.0,0.00049863,120]
[378819872,1755035473815,-1490.55,0.00049863,120]
[378819873,1755035473824,-400.0,0.00049863,120]
[378819874,1755035473834,-509.2,0.00049863,120]
[378819875,1755035473844,-400.0,0.00049863,120]
[378819876,1755035473853,-400.0,0.00049863,120]
[378819877,1755035473862,-624.64,0.00049863,120]
[378819878,1755035473871,-400.0,0.00049863,120]
[378819879,1755035473880,-187.61620494,0.00049863,120]
[378819880,1755035473889,-400.0,0.00049863,120]
[378819881,1755035473898,-400.0,0.00049863,120]
[378819882,1755035473907,-400.0,0.00049863,120]
[378819883,1755035473917,-556.96,0.00049863,120]
[378819884,1755035473926,-400.0,0.00049863,120]
[378819885,1755035473935,-400.0,0.00049863,120]
[378819886,1755035473945,-400.0,0.00049863,120]
[378819887,1755035473955,-400.0,0.00049863,120]
[378819888,1755035473963,-400.0,0.00049863,120]
[378819889,1755035473973,-686.73,0.00049863,120]
[378819890,1755035473982,-420.5,0.00049863,120]
[378819891,1755035473991,-400.0,0.00049863,120]
[378819892,1755035474000,-662.48,0.00049863,120]
[378819893,1755035474012,-401.1,0.00049863,120]
[378819894,1755035474022,-637.52,0.00049863,120]
[378819895,1755035474031,-826.26,0.00049863,120]
[378819896,1755035474041,-577.88,0.00049863,120]
[378819897,1755035474050,-400.0,0.00049863,120]
[378819898,1755035474059,-400.0,0.00049863,120]
[378819899,1755035474069,-939.46,0.00049863,120]
[378819900,1755035474081,-1075.37,0.00049863,120]
[378819901,1755035474090,-400.0,0.00049863,120]
[378819902,1755035474100,-400.0,0.00049863,120]
[378819903,1755035474109,-400.0,0.00049863,120]
[378819904,1755035474118,-400.0,0.00049863,120]
[378819905,1755035474127,-400.0,0.00049863,120]
[378819906,1755035474137,-400.0,0.00049863,120]
[378819907,1755035474146,-400.0,0.00049863,120]
[378819908,1755035474155,-1583.84,0.00049863,120]
[378819909,1755035474164,-738.78,0.00049863,120]
[378819910,1755035474174,-400.0,0.00049863,120]
[378819911,1755035474184,-400.0,0.00049863,120]
[378819912,1755035474193,-400.0,0.00049863,120]
[378819913,1755035474202,-185.09,0.00049863,120]
[378819914,1755035474212,-558.49,0.00049863,120]
[378819915,1755035474222,-400.0,0.00049863,120]
[378819916,1755035474231,-1082.49,0.00049863,120]
[378819917,1755035474241,-1327.04,0.00049863,120]
[378819918,1755035474250,-400.0,0.00049863,120]
[378819919,1755035474260,-400.0,0.00049863,120]
[378819920,1755035474270,-660.32,0.00049863,120]
[378819921,1755035474279,-710.24,0.00049863,120]
[378819922,1755035474289,-487.57,0.00049863,120]
[378819923,1755035474298,-576.04,0.00049863,30]
[378819924,1755035474307,-400.0,0.00049863,120]
[378819925,1755035474316,-541.87,0.00049863,120]
[378819926,1755035474326,-400.0,0.00049863,120]
[378819927,1755035474335,-400.0,0.00049863,120]
[378819928,1755035474344,-400.0,0.00049863,120]
[378819929,1755035474354,-664.56,0.00049863,120]
[378819930,1755035474363,-400.0,0.00049863,120]
[378819931,1755035474373,-400.0,0.00049863,120]
[378819932,1755035474382,-959.86,0.00049863,120]
[378819933,1755035474392,-943.67,0.00049863,120]
[378819934,1755035474401,-400.0,0.00049863,120]
[378819935,1755035474410,-400.0,0.00049863,120]
[378819936,1755035474419,-400.0,0.00049863,120]
[378819937,1755035474429,-400.0,0.00049863,120]
[378819938,1755035474438,-400.0,0.00049863,120]
[378819939,1755035474447,-400.0,0.00049863,120]
[378819940,1755035474456,-400.0,0.00049863,120]
[378819941,1755035474466,-890.03,0.00049863,120]
[378819942,1755035474475,-591.65,0.00049863,120]
[378819943,1755035474485,-1049.69,0.00049863,120]
[378819944,1755035474494,-943.99,0.00049863,120]
[378819945,1755035474503,-400.0,0.00049863,120]
[378819946,1755035474513,-400.0,0.00049863,120]
[378819947,1755035474522,-463.23469886,0.00049863,120]
[378819948,1755035474531,-1128.21,0.00049863,120]
[378819949,1755035474540,-400.0,0.00049863,120]
[378819950,1755035474550,-915.86,0.00049863,120]
[378819951,1755035474559,-400.0,0.00049863,120]
[378819952,1755035474569,-453.53,0.00049863,120]
[378819953,1755035474578,-584.68,0.00049863,120]
[378819954,1755035474588,-400.0,0.00049863,120]
[378819955,1755035474597,-1016.72,0.00049863,120]
[378819956,1755035474607,-967.54,0.00049863,120]
[378819957,1755035474616,-400.0,0.00049863,120]
[378819958,1755035474625,-519.5,0.00049863,120]
[378819959,1755035474634,-400.0,0.00049863,120]
[378819960,1755035474643,-400.0,0.00049863,120]
[378819961,1755035474652,-601.17,0.00049863,120]
[378819962,1755035474661,-400.0,0.00049863,120]
[378819963,1755035474845,-852.45,0.00049863,120]
[378819964,1755035474877,-411.34,0.00049863,120]
[378819965,1755035474887,-400.0,0.00049863,120]
[378819966,1755035474896,-400.0,0.00049863,120]
[378819967,1755035474906,-400.0,0.00049863,120]
[378819968,1755035474915,-1106.73,0.00049863,120]
[378819969,1755035474924,-400.0,0.00049863,120]
[378819970,1755035474934,-520.0,0.00049863,120]
[378819971,1755035474943,-400.0,0.00049863,120]
[378819972,1755035474952,-400.0,0.00049863,120]
[378819973,1755035474962,-400.0,0.00049863,120]
[378819974,1755035474971,-400.0,0.00049863,120]
[378819975,1755035474980,-410.97,0.00049863,120]
[378819976,1755035474989,-400.0,0.00049863,120]
[378819977,1755035474998,-400.0,0.00049863,120]
[378819978,1755035475010,-400.0,0.00049863,120]
[378819979,1755035475019,-400.0,0.00049863,120]
[378819980,1755035475029,-442.72,0.00049863,120]
[378819981,1755035475039,-400.0,0.00049863,120]
[378819982,1755035475049,-1047.49,0.00049863,120]
[378819983,1755035475058,-400.0,0.00049863,120]
[378819984,1755035475067,-400.0,0.00049863,120]
[378819985,1755035475076,-557.98,0.00049863,120]
[378819986,1755035475087,-447.93,0.00049863,120]
[378819987,1755035475097,-400.0,0.00049863,120]
[378819988,1755035475107,-400.0,0.00049863,120]
[378819989,1755035475116,-400.0,0.00049863,120]
[378819990,1755035475125,-400.0,0.00049863,120]
[378819991,1755035475135,-400.0,0.00049863,120]
[378819992,1755035475144,-1109.98,0.00049863,120]
[378819993,1755035475153,-400.0,0.00049863,120]
[378819994,1755035475163,-508.04,0.00049863,120]
[378819995,1755035475172,-525.47,0.00049863,120]
[378819996,1755035475181,-789.64,0.00049863,120]
[378819997,1755035475191,-400.0,0.00049863,120]
[378819998,1755035475200,-400.0,0.00049863,120]
[378819999,1755035475210,-400.0,0.00049863,120]
[378820000,1755035475219,-1080.45,0.00049863,120]
[378820001,1755035475229,-400.0,0.00049863,120]
[378820002,1755035475238,-400.0,0.00049863,120]
[378820003,1755035475248,-400.0,0.00049863,120]
[378820004,1755035475257,-567.68,0.00049863,120]
[378820005,1755035475266,-542.96,0.00049863,120]
[378820006,1755035475275,-400.0,0.00049863,120]
[378820007,1755035475284,-400.0,0.00049863,120]
[378820008,1755035475294,-400.0,0.00049863,120]
[378820009,1755035475303,-1162.69,0.00049863,120]
[378820010,1755035475312,-1089.68,0.00049863,120]
[378820011,1755035475321,-510.84,0.00049863,120]
[378820012,1755035475330,-400.0,0.00049863,120]
[378820013,1755035475339,-551.56,0.00049863,120]
[378820014,1755035475349,-400.0,0.00049863,120]
[378820015,1755035475359,-400.0,0.00049863,120]
[378820016,1755035475369,-799.92,0.00049863,120]
[378820017,1755035475378,-400.0,0.00049863,120]
[378820018,1755035475387,-442.87,0.00049863,120]
[378820019,1755035475397,-517.64,0.00049863,120]
[378820020,1755035475408,-454.83,0.00049863,120]
[378820021,1755035475419,-400.0,0.00049863,120]
[378820022,1755035475430,-573.59,0.00049863,120]
[378820023,1755035475439,-482.87,0.00049863,120]
[378820024,1755035475448,-400.0,0.00049863,120]
[378820025,1755035475457,-1157.56,0.00049863,120]
[378820026,1755035475467,-375.04,0.00049863,120]
[378820027,1755035475476,-400.0,0.00049863,120]
[378820028,1755035475485,-760.12,0.00049863,120]
[378820029,1755035475495,-190.0,0.00049863,120]
[378820030,1755035475504,-400.0,0.00049863,120]
[378820031,1755035475513,-400.0,0.00049863,120]
[378820032,1755035475521,-400.0,0.00049863,120]
[378820033,1755035475530,-400.0,0.00049863,120]
[378820034,1755035475540,-968.55,0.00049863,120]
[378820035,1755035475549,-400.0,0.00049863,120]
[378820036,1755035475558,-160.0,0.00049863,120]
[378820037,1755035475567,-506.81,0.00049863,120]
[378820038,1755035475577,-400.0,0.00049863,120]
[378820039,1755035475586,-400.0,0.00049863,120]
[378820040,1755035475595,-70.53323948,0.00049863,120]
[378820041,1755035476023,-329.46676052,0.00049863,120]
[378820042,1755035476033,-846.29,0.00049863,120]
[378820043,1755035476043,-400.0,0.00049863,120]
[378820044,1755035476052,-431.86,0.00049863,120]
[378820045,1755035476061,-369.85811354,0.00049863,120]
[378820046,1755035476092,-30.14188646,0.00049863,120]
[378820047,1755035476102,-519.83,0.00049863,120]
[378820048,1755035476111,-400.0,0.00049863,120]
[378820049,1755035476120,-400.0,0.00049863,120]
[378820050,1755035476130,-400.0,0.00049863,120]
[378820051,1755035476139,-446.06,0.00049863,120]
[378820052,1755035476148,-771.51,0.00049863,120]
[378820053,1755035476157,-400.0,0.00049863,120]
[378820054,1755035476167,-81.60681698,0.00049863,120]
[378820055,1755036004059,300.0,0.00027651,120]
[378820057,1755036496712,159.71,0.00013699,2]
[378820070,1755036632379,-514.0,0.00025137,2]
[378820071,1755036632389,-514.0,0.00036758,21]
[378820072,1755036632400,-150.0,0.000411,2]
[378820073,1755036632409,-168.0,0.00042379,2]
[378820074,1755036632418,-1113.0,0.0004374,30]
[378820075,1755036632428,-168.0,0.00043834,2]
[378820076,1755036632437,-1113.0,0.00044191,30]
[378820077,1755036632447,-159.71,0.00044521,2]
[378820078,1755036632456,-1113.0,0.00044642,30]
[378820079,1755036632465,-168.0,0.00044873,7]
[378820080,1755036632475,-1200.0,0.00045092,5]
[378820081,1755036632484,-1113.0,0.00045093,30]
[378820082,1755036632493,-350.03247116,0.00045093,30]
[378820083,1755036632503,-168.0,0.00045267,2]
[378820084,1755036632512,-168.0,0.00045435,2]
[378820085,1755036632522,-550.0,0.00045543,5]
[378820086,1755036632531,-857.67405124,0.00045544,30]
[378820087,1755036632542,-255.32594876,0.00045544,30]
[378820088,1755036632558,-465.13265076,0.0004562,30]
[378820089,1755036632602,-672.10928329,0.0004562,30]
[378820090,1755036632611,-168.0,0.00045698,2]
[378820091,1755036632621,-416.0,0.00045994,5]
[378820092,1755036632631,-1113.0,0.00045995,30]
[378820093,1755036632641,-162.21,0.00046022,120]
[378820094,1755036632651,-250.0,0.00046123,120]
[378820096,1755036632660,-181.08,0.00046198,2]
[378820097,1755036632670,-176.58,0.00046361,2]
[378820098,1755036632680,-168.0,0.00046373,2]
[378820099,1755036632689,-1113.0,0.00046446,30]
[378820100,1755036632699,-168.0,0.00046548,2]
[378820101,1755036632709,-168.0,0.00046593,2]
[378820102,1755036632718,-200.0,0.00046649,2]
[378820103,1755036632728,-200.0,0.00046649,2]
[378820104,1755036632737,-200.0,0.00046649,2]
[378820105,1755036632747,-200.0,0.00046649,2]
[378820106,1755036632756,-200.0,0.00046649,2]
[378820107,1755036632765,-200.0,0.00046649,2]
[378820108,1755036632773,-200.0,0.00046649,2]
[378820109,1755036632783,-168.0,0.00046659,2]
[378820110,1755036632792,-313.09295543,0.00046676,31]
[378820111,1755036632802,-180.102,0.00046676,78]
[378820112,1755036632811,-1584.836,0.00046676,78]
[378820113,1755036632821,-23900.0,0.00046677,2]
[378820114,1755036632831,-1000.0,0.00046723,2]
[378820115,1755036632840,-200.0,0.00046732,2]
[378820116,1755036632850,-254.0,0.00046732,2]
[378820117,1755036632859,-170.0,0.00046749,7]
[378820118,1755036632869,-356.18,0.000468,7]
[378820119,1755036632878,-171.36,0.0004687,2]
[378820120,1755036632887,-666.0,0.00046902,3]
[378820121,1755036632897,-1152.18,0.0004691,2]
[378820122,1755036632906,-171.36,0.00046964,2]
[378820123,1755036632915,-598.28,0.00046993,2]
[378820124,1755036632925,-1000.0,0.00047,30]
[378820125,1755036632935,-1000.0,0.00047,30]
[378820126,1755036632944,-1000.0,0.00047,30]
[378820127,1755036632953,-624.97,0.00047003,120]
[378820128,1755036632963,-171.36,0.00047058,2]
[378820129,1755036632972,-199.49,0.00047108,2]
[378820131,1755036632981,-171.36,0.00047152,2]
[378820132,1755036632992,-171.36,0.00047245,2]
[378820133,1755036633001,-171.36,0.00047339,2]
[378820135,1755036633010,-203.54,0.00047378,120]
[378820137,1755036633019,-210.8119237,0.00047835,120]
[378820140,1755036633029,-165.19,0.00047878,30]
[378820142,1755036633038,-8432.92632641,0.00048,30]
[378820143,1755036633048,-514.0,0.00048379,40]
[378820144,1755036633058,-1025.7,0.00048441,30]
[378820145,1755036633067,-796.99,0.00048441,30]
[378820146,1755036633077,-160.0,0.00048563,2]
[378820147,1755036633086,-373.05,0.00048578,30]
[378820148,1755036633096,-709.44,0.00048578,30]
[378820149,1755036633106,-165.76,0.00048578,30]
[378820150,1755036633116,-165.76,0.00048578,30]
[378820151,1755036633126,-199.28,0.00048613,120]
[378820152,1755036633135,-211.77135896,0.00048655,2]
[378820153,1755036633144,-2254.5335,0.0004869,2]
[378820154,1755036633154,-3009.56058647,0.000487,15]
[378820155,1755036633165,-1000.0,0.00048789,120]
[378820156,1755036633174,-159.77454004,0.00048799,120]
[378820157,1755036633184,-109373.93437606,0.000488,120]
[378820158,1755036633196,-302.84829567,0.000488,120]
[378820159,1755036633208,-600.14822186,0.000488,120]
[378820160,1755036633228,-18005.918457,0.000488,120]
[378820161,1755036633244,-1455.37791847,0.000488,120]
[378820162,1755036633348,-610.44814184,0.000416,3]
[378820163,1755036633361,-1277.55185816,0.000416,3]
[378820164,1755036633371,-3776.0,0.0004384,3]
[378820165,1755036633381,-49977.57183243,0.000488,120]
[378820166,1755036638171,-888.0,0.000488,120]
[378820167,1755036638182,-2291.85,0.000488,120]
[378820168,1755036638202,-507.00001015,0.000488,120]
[378820169,1755036638316,-23580.99751834,0.000488,120]
[378820170,1755036638329,-150.0,0.000488,30]
[378820171,1755036638338,-155.03,0.000488,30]